[Event "Maharashtra Challenge Matches 2023"]
[Site "Nagpur"]
[Date "2023.06.05"]
[Round "10.1"]
[White "Sadhwani, Raunak"]
[Black "Short, Nigel D"]
[Result "1-0"]
[Annotator "TA"]
[ECO "A52"]
[WhiteElo "2627"]
[BlackElo "2597"]
[PlyCount "60"]
[EventDate "2023.06.03"]
[EventType "match"]
[EventCountry "IND"]
[SourceTitle "playchess.com"]
[Source "ChessBase"]
[SourceQuality "1"]
[TimeControl "180+2"]

{[%evp 9,60,24,39,22,45,6,29,10,37,48,53,53,52,44,48,43,51,46,37,4,54,34,130,130,136,58,74,66,151,31,25,21,62,63,56,68,62,54,101,46,60,70,118,137,94,89,335,111,108,119,117,76,1569]} 1. d4 Nf6 {[%emt 0:00:01]} 2. c4 {[%emt 0:00:02]} e5 {[%emt 0:00:02]} 3. dxe5 {[%emt 0:00:05]} Ng4 {[%emt 0:00:01]} 4. e3 {[%emt 0:00:04]} Nxe5 {[%emt 0:00:05]} 5. f4 {[%emt 0:00:03]} Nec6 {[%emt 0:00:02]} 6. a3 {[%emt 0:00:03] A52: Budapest Gambit.} a5 {[%emt 0:00:01] [#]} 7. Nc3 $146 {[%emt 0:00:03]} ({Predecessor:} 7. Nf3 Bc5 8. Bd3 d6 9. Nc3 Na6 10. O-O O-O 11. Kh1 Re8 12. Bc2 Ba7 13. Nd5 {0-1 Gordievsky,D (2474)-Nadanian,A (2428) Wch Blitz 7th 2013 (7)}) 7... Na6 {[%emt 0:00:02]} 8. Bd3 {[%emt 0:00:06] White has an edge.} b6 {[%emt 0:00:08]} 9. Nf3 {[%emt 0:00:02]} Bb7 {[%emt 0:00:01]} 10. O-O {[%emt 0:00:02]} g6 {[%emt 0:00:25]} 11. b3 {[%emt 0:00:10][%cal Bb2b3,Bb3b4][%mdl 32]} Bg7 {[%emt 0:00:02]} 12. Bb2 {[%emt 0:00:02]} O-O {[%emt 0:00:03]} 13. Qc2 {[%emt 0:00:15]} Nc5 {[%emt 0:00:06]} 14. Be2 {[%emt 0:00:01]} d6 {[%emt 0:00:51]} (14... Ne7 $11) 15. Nd5 $14 {[%emt 0:00:21]} f6 {[%emt 0:00:18]} ({Black should try} 15... Bxb2 $14 16. Qxb2 f5) 16. b4 $16 {[%emt 0:00:07]} Nd7 {[%emt 0:00:01]} 17. Nd2 {[%emt 0:00:07] White is much more active.} ({White should play} 17. Qb3 $16) 17... Ne7 $14 {[%emt 0:00:04]} 18. Bf3 {[%emt 0:00:24]} Bxd5 {[%emt 0:00:02]} (18... c6 $14 19. Nxe7+ Qxe7) 19. Bxd5+ {[%emt 0:00:09]} (19. cxd5 $16 b5 20. g3) 19... Nxd5 {[%emt 0:00:03]} 20. cxd5 {[%emt 0:00:01]} f5 {[%emt 0:00:04]} 21. Bxg7 {[%emt 0:00:05]} Kxg7 {[%emt 0:00:02]} 22. Nf3 {[%emt 0:00:01]} Qe7 {[%emt 0:00:18]} 23. Ng5 $1 {[%emt 0:00:08] Ne6+ would be deadly.} Rfc8 {[%emt 0:00:04]} (23... Qxe3+ $2 24. Kh1 Rae8 25. Qxc7 $18) (23... Rfe8 $14 {should be considered.}) 24. Ne6+ {[%emt 0:00:07]} (24. e4 $16) 24... Kg8 {[%emt 0:00:01]} 25. e4 {[%emt 0:00:02]} (25. Nxc7 $2 Ra7 26. Rac1 Qxe3+ 27. Qf2 Qxf2+ 28. Rxf2 Raxc7 $19) 25... fxe4 {[%emt 0:00:11]} (25... Qf6 $14) 26. f5 $16 {[%emt 0:00:11] Strongly threatening fxg6.} (26. Nxc7 $2 {too greedy.} Nf6 27. Rac1 Ra7 $19) 26... axb4 {[%emt 0:00:16]} 27. Qxe4 {[%emt 0:00:23]} gxf5 {[%emt 0:00:21]} (27... Rf8 $16) 28. Qxb4 $2 {[%emt 0:00:28]} ({Not} 28. Qxf5 bxa3 29. Rf3 Kh8 $11) (28. Rxf5 $18 {is the precise move to win.} Ne5 29. Qxb4) 28... Nc5 {[%emt 0:00:06] White is better.} 29. Rxf5 {[%emt 0:00:10]} Ra4 {[%emt 0:00:10]} 30. Qc3 {[%emt 0:00:05] [#] Black must now prevent Rg5+.} Ra7 $2 {[%mdl 8192] Weighted Error Value: White=0.28 (precise) /Black=0.36} (30... Nxe6 $16 31. dxe6 Qg7 32. Qxg7+ Kxg7) 1-0